[Event "Dvorkovich Memorial Rapid 2018"]
[Site "Taganrog"]
[Date "2018.01.13"]
[Round "3.24"]
[White "Musalov, Ruslan"]
[Black "Krivochkin, Ilya"]
[Result "1-0"]
[ECO "A12"]
[WhiteElo "2338"]
[BlackElo "2046"]
[Annotator "NA"]
[PlyCount "103"]
[EventDate "2018.??.??"]
[EventType "swiss"]
[EventCountry "RUS"]
[SourceTitle "playchess.com"]
[Source "ChessBase"]
[SourceQuality "1"]
[TimeControl "900+10"]

1. Nf3 {[%emt 0:02:26]} d5 {[%emt 0:00:01]} 2. e3 {[%emt 0:00:14]} Bf5 {[%emt 0:00:19]} 3. b3 {[%emt 0:00:11]} Nf6 {[%emt 0:00:08]} 4. Bb2 {[%emt 0:00:02]} e6 {[%emt 0:00:05]} 5. Be2 {[%emt 0:00:37]} Bd6 {[%emt 0:00:18]} 6. O-O {[%emt 0:00:27]} Nbd7 {[%emt 0:00:00]} 7. c4 {[%emt 0:00:00]} c6 {[%emt 0:00:03]} 8. d4 {[%emt 0:00:17]} Ne4 {[%emt 0:00:08]} 9. Nc3 {[%emt 0:00:21]} Qf6 {[%emt 0:00:19]} 10. Nd2 {[%emt 0:00:45]} Qh6 {[%emt 0:00:35]} 11. f4 {[%emt 0:00:23]} Ndf6 {[%emt 0:01:58]} 12. Ncxe4 {[%emt 0:01:04]} dxe4 {[%emt 0:03:41]} 13. Rf2 {[%emt 0:03:36]} g5 {[%emt 0:02:26]} 14. Nf1 {[%emt 0:02:36]} gxf4 {[%emt 0:00:46]} 15. exf4 {[%emt 0:00:00]} Rg8 {[%emt 0:03:01]} 16. Qd2 {[%emt 0:02:13]} O-O-O {[%emt 0:02:31]} 17. b4 {[%emt 0:01:40]} Bg4 {[%emt 0:00:27]} 18. c5 {[%emt 0:00:41]} Bxe2 {[%emt 0:00:52]} 19. Qxe2 {[%emt 0:00:19]} Bxf4 {[%emt 0:00:09]} 20. b5 {[%emt 0:00:00]} Ng4 {[%emt 0:00:26]} 21. Rxf4 {[%emt 0:00:17]} Qxf4 {[%emt 0:00:00]} 22. bxc6 {[%emt 0:00:05]} bxc6 {[%emt 0:00:07]} 23. Qa6+ {[%emt 0:00:12]} Kd7 {[%emt 0:00:05]} 24. Qxa7+ {[%emt 0:00:02]} Qc7 {[%emt 0:00:18]} 25. Qa3 {[%emt 0:00:19]} Rg6 {[%emt 0:00:12]} 26. h3 {[%emt 0:00:19]} Nf6 {[%emt 0:00:07]} 27. Re1 {[%emt 0:00:08]} Rdg8 {[%emt 0:00:14]} 28. Re2 {[%emt 0:00:03]} Nd5 {[%emt 0:00:04]} 29. Rf2 {[%emt 0:00:03]} f5 {[%emt 0:00:13]} 30. g4 {[%emt 0:00:01]} h5 {[%emt 0:00:09]} 31. Rg2 {[%emt 0:00:25]} hxg4 {[%emt 0:00:02]} 32. h4 {[%emt 0:00:03]} Nf4 {[%emt 0:00:16]} 33. Qe3 {[%emt 0:00:06]} Nxg2 {[%emt 0:00:03]} 34. Kxg2 {[%emt 0:00:10]} g3 {[%emt 0:00:29]} 35. Bc1 {[%emt 0:00:00]} Rg4 {[%emt 0:00:05]} 36. h5 {[%emt 0:00:26]} Qd8 {[%emt 0:00:08]} 37. Qb3 {[%emt 0:00:22]} Ke7 {[%emt 0:00:10]} 38. Ne3 {[%emt 0:00:00]} Rh4 {[%emt 0:00:17]} 39. d5 {[%emt 0:00:21]} Rh2+ {[%emt 0:00:10]} 40. Kg1 {[%emt 0:00:00]} Qa5 {[%emt 0:00:14]} 41. Qb7+ {[%emt 0:00:15]} Ke8 {[%emt 0:00:00]} 42. Qxc6+ {[%emt 0:00:05]} Kf8 {[%emt 0:00:09]} 43. Qd6+ {[%emt 0:00:00]} Ke8 {[%emt 0:00:11]} 44. Qxe6+ {[%emt 0:00:10]} Kd8 {[%emt 0:00:11]} 45. Qxg8+ {[%emt 0:00:00]} Kc7 {[%emt 0:00:05]} 46. Qxg3+ {[%emt 0:00:08]} Kc8 {[%emt 0:00:09]} 47. Kxh2 {[%emt 0:00:07]} Qxc5 {[%emt 0:00:03]} 48. Bb2 {[%emt 0:00:18]} Qa5 {[%emt 0:00:06]} 49. Be5 {[%emt 0:00:13]} Qxa2+ {[%emt 0:00:03]} 50. Kh3 {[%emt 0:00:04]} Qe2 {[%emt 0:00:06]} 51. Kh4 {[%emt 0:00:16]} Qd3 {[%emt 0:00:19]} 52. h6 {[%emt 0:00:13]} 1-0

[Event "Dvorkovich Memorial Rapid 2018"]
[Site "Taganrog"]
[Date "2018.01.14"]
[Round "3.26"]
[White "Tsoi, Dmitry"]
[Black "Chan, Naruna"]
[Result "1-0"]
[ECO "B31"]
[WhiteElo "2371"]
[BlackElo "1929"]
[Annotator "ChessBase"]
[PlyCount "81"]
[EventDate "2018.??.??"]
[EventType "swiss"]
[EventCountry "RUS"]
[SourceTitle "playchess.com"]
[Source "ChessBase"]
[SourceQuality "1"]
[TimeControl "900+10"]

1. e4 {[%emt 0:00:00]} c5 {[%emt 0:00:00]} 2. Be2 {[%emt 0:00:00]} Nc6 {[%emt 0:00:00]} 3. f4 {[%emt 0:00:00]} e5 {[%emt 0:02:02]} 4. d3 {[%emt 0:00:01]} exf4 {[%emt 0:00:05]} 5. Bxf4 {[%emt 0:00:18]} d6 {[%emt 0:00:58]} 6. Nf3 {[%emt 0:00:08]} Be7 {[%emt 0:00:23]} 7. O-O {[%emt 0:00:07]} Nf6 {[%emt 0:00:01]} 8. Qe1 {[%emt 0:00:03]} O-O {[%emt 0:00:43]} 9. c4 {[%emt 0:00:12]} Ng4 {[%emt 0:03:15]} 10. Nc3 {[%emt 0:00:09]} Nge5 {[%emt 0:00:36]} 11. Bxe5 {[%emt 0:00:07]} Nxe5 {[%emt 0:00:53]} 12. Nxe5 {[%emt 0:00:12]} dxe5 {[%emt 0:00:01]} 13. Nd5 {[%emt 0:00:00]} Bh4 {[%emt 0:01:43]} 14. Qd1 {[%emt 0:00:15]} f5 {[%emt 0:01:30]} 15. exf5 {[%emt 0:00:11]} Bxf5 {[%emt 0:00:30]} 16. Bg4 {[%emt 0:00:11]} Bg6 {[%emt 0:00:14]} 17. Bf3 {[%emt 0:00:47]} Kh8 {[%emt 0:00:31]} 18. Be4 {[%emt 0:00:14]} Qg5 {[%emt 0:01:21]} 19. Bxg6 {[%emt 0:00:14]} Qxg6 {[%emt 0:00:00]} 20. Qe2 {[%emt 0:00:02]} Bf6 {[%emt 0:01:52]} 21. Qe4 {[%emt 0:00:00]} Qxe4 {[%emt 0:00:13]} 22. dxe4 {[%emt 0:00:00]} a6 {[%emt 0:00:36]} 23. a4 {[%emt 0:00:14]} Rab8 {[%emt 0:00:07]} 24. Rf3 {[%emt 0:00:15]} Kg8 {[%emt 0:00:41]} 25. Rb3 {[%emt 0:00:19]} Bd8 {[%emt 0:00:35]} 26. Rf1 {[%emt 0:00:15]} Rxf1+ {[%emt 0:00:12]} 27. Kxf1 {[%emt 0:00:03]} Kf7 {[%emt 0:00:04]} 28. Ke2 {[%emt 0:00:01]} Ke6 {[%emt 0:00:02]} 29. Kd1 {[%emt 0:00:35]} Ba5 {[%emt 0:00:16]} 30. Kc2 {[%emt 0:00:50]} h6 {[%emt 0:00:27]} 31. h4 {[%emt 0:01:13]} Rf8 {[%emt 0:00:05]} 32. Rxb7 {[%emt 0:00:04]} Rf2+ {[%emt 0:00:11]} 33. Kb3 {[%emt 0:00:02]} Rxg2 {[%emt 0:00:03]} 34. Re7+ {[%emt 0:00:10]} Kd6 {[%emt 0:00:00]} 35. Ra7 {[%emt 0:00:01]} Be1 {[%emt 0:00:01]} 36. Rxa6+ {[%emt 0:00:18]} Kd7 {[%emt 0:00:01]} 37. h5 {[%emt 0:00:04]} Rg5 {[%emt 0:00:30]} 38. Ra7+ {[%emt 0:00:25]} Kd8 {[%emt 0:00:12]} 39. a5 {[%emt 0:00:03]} Rxh5 {[%emt 0:00:19]} 40. a6 {[%emt 0:00:02]} g5 {[%emt 0:00:13]} 41. Rh7 {[%emt 0:00:09]} 1-0

[Event "Dvorkovich Memorial Rapid 2018"]
[Site "Taganrog"]
[Date "2018.01.13"]
[Round "3.27"]
[White "Getman, Dmitriy"]
[Black "Kotenko, Pavel"]
[Result "0-1"]
[ECO "E92"]
[WhiteElo "1772"]
[BlackElo "2403"]
[Annotator "NA"]
[PlyCount "84"]
[EventDate "2018.??.??"]
[EventType "swiss"]
[EventCountry "RUS"]
[SourceTitle "playchess.com"]
[Source "ChessBase"]
[SourceQuality "1"]
[TimeControl "900+10"]

1. d4 {[%emt 0:15:00]} Nf6 {[%emt 0:15:10]} 2. c4 {[%emt 0:00:10]} g6 {[%emt 0:00:10]} 3. Nc3 {[%emt 0:00:10]} Bg7 {[%emt 0:00:10]} 4. e4 {[%emt 0:00:00]} d6 {[%emt 0:00:00]} 5. h3 {[%emt 0:00:20]} O-O {[%emt 0:00:20]} 6. Nf3 {[%emt 0:00:10]} e5 {[%emt 0:00:10]} 7. d5 {[%emt 0:00:10]} a5 {[%emt 0:00:10]} 8. Be3 {[%emt 0:00:10]} Na6 {[%emt 0:00:10]} 9. Be2 {[%emt 0:00:10]} Nh5 {[%emt 0:00:10]} 10. a3 {[%emt 0:00:10]} Nf4 {[%emt 0:00:10]} 11. O-O {[%emt 0:00:10]} Nxe2+ {[%emt 0:00:10]} 12. Qxe2 {[%emt 0:00:10]} Bd7 {[%emt 0:00:10]} 13. Rfb1 {[%emt 0:00:10]} a4 {[%emt 0:00:10]} 14. b4 {[%emt 0:00:10]} axb3 {[%emt 0:00:10]} 15. Rxb3 {[%emt 0:00:10]} b6 {[%emt 0:00:10]} 16. Nb5 {[%emt 0:00:10]} f5 {[%emt 0:00:10]} 17. Nc3 {[%emt 0:00:10]} f4 {[%emt 0:00:10]} 18. Bd2 {[%emt 0:00:10]} g5 {[%emt 0:00:10]} 19. Ne1 {[%emt 0:00:10]} Qe8 {[%emt 0:00:10]} 20. Nb5 {[%emt 0:00:10]} h5 {[%emt 0:00:10]} 21. f3 {[%emt 0:00:10]} Qg6 {[%emt 0:00:10]} 22. Nd3 {[%emt 0:00:10]} g4 {[%emt 0:00:10]} 23. hxg4 {[%emt 0:00:10]} hxg4 {[%emt 0:00:10]} 24. Kf1 {[%emt 0:00:10]} Bf6 {[%emt 0:00:10]} 25. Qf2 {[%emt 0:00:10]} Kg7 {[%emt 0:00:10]} 26. Ke2 {[%emt 0:00:10]} Rh8 {[%emt 0:00:10]} 27. Nb4 {[%emt 0:00:10]} Nc5 {[%emt 0:00:10]} 28. Rbb1 {[%emt 0:00:10]} Bh4 {[%emt 0:00:10]} 29. Qf1 {[%emt 0:00:10]} Bxb5 {[%emt 0:00:10]} 30. cxb5 {[%emt 0:00:10]} Bg3 {[%emt 0:00:10]} 31. Nd3 {[%emt 0:00:10]} gxf3+ {[%emt 0:00:10]} 32. gxf3 {[%emt 0:00:10]} Rh2+ {[%emt 0:00:10]} 33. Kd1 {[%emt 0:00:10]} Rah8 {[%emt 0:00:10]} 34. Kc2 {[%emt 0:00:10]} Nxe4 {[%emt 0:00:10]} 35. fxe4 {[%emt 0:00:10]} Qxe4 {[%emt 0:00:10]} 36. Rb4 {[%emt 0:00:10]} Qxd5 {[%emt 0:00:10]} 37. Qc1 {[%emt 0:00:10]} e4 {[%emt 0:00:10]} 38. Qb2+ {[%emt 0:00:10]} Kf7 {[%emt 0:00:10]} 39. Rd4 {[%emt 0:00:10]} exd3+ {[%emt 0:00:10]} 40. Rxd3 {[%emt 0:00:10]} Qc4+ {[%emt 0:00:10]} 41. Rc3 {[%emt 0:00:10]} Rxd2+ {[%emt 0:00:10]} 42. Kxd2 {[%emt 0:00:10]} Rh2+ {[%emt 0:00:10]} 0-1

[Event "Dvorkovich Memorial Rapid 2018"]
[Site "Taganrog"]
[Date "2018.01.13"]
[Round "3.28"]
[White "Chernyavsky, Alexander"]
[Black "Sukhareva, Valentina"]
[Result "1-0"]
[ECO "A40"]
[WhiteElo "2326"]
[BlackElo "1832"]
[Annotator "NA"]
[PlyCount "57"]
[EventDate "2018.??.??"]
[EventType "swiss"]
[EventCountry "RUS"]
[SourceTitle "playchess.com"]
[Source "ChessBase"]
[SourceQuality "1"]
[TimeControl "900+10"]

1. d4 {[%emt 0:00:00]} e6 {[%emt 0:00:18]} 2. b3 {[%emt 0:00:29]} d5 {[%emt 0:00:22]} 3. e3 {[%emt 0:00:04]} f5 {[%emt 0:01:30]} 4. Bd3 {[%emt 0:00:30]} Nf6 {[%emt 0:00:09]} 5. Bb2 {[%emt 0:00:32]} Nbd7 {[%emt 0:00:24]} 6. c4 {[%emt 0:00:14]} c6 {[%emt 0:00:08]} 7. Nc3 {[%emt 0:00:02]} Bd6 {[%emt 0:00:25]} 8. Nge2 {[%emt 0:00:20]} Ne4 {[%emt 0:00:27]} 9. Qc2 {[%emt 0:00:28]} Qh4 {[%emt 0:00:54]} 10. g3 {[%emt 0:00:36]} Qh6 {[%emt 0:01:48]} 11. h4 {[%emt 0:03:18]} Ndf6 {[%emt 0:01:15]} 12. Bxe4 {[%emt 0:03:43]} Nxe4 {[%emt 0:01:16]} 13. Rf1 {[%emt 0:00:58]} Bd7 {[%emt 0:00:53]} 14. Nf4 {[%emt 0:00:58]} Qf6 {[%emt 0:00:22]} 15. O-O-O {[%emt 0:00:17]} Rc8 {[%emt 0:06:43]} 16. Nce2 {[%emt 0:00:10]} Qe7 {[%emt 0:00:20]} 17. f3 {[%emt 0:00:52]} Nf6 {[%emt 0:00:18]} 18. Kb1 {[%emt 0:00:10]} g6 {[%emt 0:00:18]} 19. Nc3 {[%emt 0:00:19]} Kd8 {[%emt 0:00:10]} 20. e4 {[%emt 0:00:08]} Bxf4 {[%emt 0:00:07]} 21. gxf4 {[%emt 0:00:02]} Ke8 {[%emt 0:00:14]} 22. Rde1 {[%emt 0:01:13]} Kf7 {[%emt 0:00:07]} 23. exd5 {[%emt 0:00:15]} cxd5 {[%emt 0:00:13]} 24. cxd5 {[%emt 0:00:02]} Qb4 {[%emt 0:00:14]} 25. dxe6+ {[%emt 0:00:13]} Bxe6 {[%emt 0:00:04]} 26. d5 {[%emt 0:00:57]} Bd7 {[%emt 0:00:16]} 27. Qd2 {[%emt 0:00:41]} Bb5 {[%emt 0:00:09]} 28. Re6 {[%emt 0:00:30]} Rhe8 {[%emt 0:00:06]} 29. Rxf6+ {[%emt 0:00:08]} 1-0

[Event "Dvorkovich Memorial Rapid 2018"]
[Site "Taganrog"]
[Date "2018.01.14"]
[Round "3.29"]
[White "Nazaretyan, Tigran"]
[Black "Ivchenko, Alexander"]
[Result "1-0"]
[ECO "A93"]
[WhiteElo "2285"]
[BlackElo "1742"]
[Annotator "ChessBase"]
[PlyCount "86"]
[EventDate "2018.??.??"]
[EventType "swiss"]
[EventCountry "RUS"]
[SourceTitle "playchess.com"]
[Source "ChessBase"]
[SourceQuality "1"]
[TimeControl "900+10"]

1. d4 {[%emt 0:00:00]} d5 {[%emt 0:00:00]} 2. c4 {[%emt 0:00:00]} e6 {[%emt 0:00:00]} 3. Nf3 {[%emt 0:00:00]} f5 {[%emt 0:00:00]} 4. g3 {[%emt 0:00:04]} Nf6 {[%emt 0:00:05]} 5. Bg2 {[%emt 0:00:02]} c6 {[%emt 0:00:00]} 6. O-O {[%emt 0:00:12]} Be7 {[%emt 0:00:03]} 7. b3 {[%emt 0:00:18]} O-O {[%emt 0:00:03]} 8. Bb2 {[%emt 0:00:21]} Ne4 {[%emt 0:00:05]} 9. Ne5 {[%emt 0:00:10]} Nd7 {[%emt 0:00:00]} 10. Nd3 {[%emt 0:00:14]} Ndf6 {[%emt 0:00:09]} 11. Nd2 {[%emt 0:00:04]} Bd7 {[%emt 0:00:14]} 12. Nf3 {[%emt 0:00:12]} Be8 {[%emt 0:00:07]} 13. Nfe5 {[%emt 0:00:00]} Bh5 {[%emt 0:00:09]} 14. Nf4 {[%emt 0:00:14]} Bf7 {[%emt 0:00:37]} 15. Rc1 {[%emt 0:00:51]} g5 {[%emt 0:00:08]} 16. Nh3 {[%emt 0:00:22]} h6 {[%emt 0:00:08]} 17. f3 {[%emt 0:00:15]} Nd6 {[%emt 0:00:00]} 18. Qd2 {[%emt 0:00:39]} Rc8 {[%emt 0:00:40]} 19. Nf2 {[%emt 0:01:09]} Nd7 {[%emt 0:00:31]} 20. Nfd3 {[%emt 0:00:58]} Nxe5 {[%emt 0:00:42]} 21. dxe5 {[%emt 0:00:23]} Ne8 {[%emt 0:00:00]} 22. cxd5 {[%emt 0:00:21]} cxd5 {[%emt 0:00:13]} 23. Rxc8 {[%emt 0:00:03]} Qxc8 {[%emt 0:00:01]} 24. Rc1 {[%emt 0:00:04]} Qd7 {[%emt 0:00:02]} 25. Qa5 {[%emt 0:01:37]} b6 {[%emt 0:00:24]} 26. Qc3 {[%emt 0:00:32]} Ng7 {[%emt 0:00:07]} 27. Qc7 {[%emt 0:00:00]} Rd8 {[%emt 0:00:06]} 28. Kf1 {[%emt 0:01:02]} Ne8 {[%emt 0:00:08]} 29. Qc6 {[%emt 0:00:24]} Qxc6 {[%emt 0:00:24]} 30. Rxc6 {[%emt 0:00:00]} Rd7 {[%emt 0:00:01]} 31. Rc8 {[%emt 0:02:08]} Rc7 {[%emt 0:00:12]} 32. Ra8 {[%emt 0:00:00]} Kh7 {[%emt 0:02:33]} 33. Ke1 {[%emt 0:00:00]} Ng7 {[%emt 0:00:00]} 34. Kd2 {[%emt 0:00:02]} Be8 {[%emt 0:00:00]} 35. Bc3 {[%emt 0:01:01]} Bc6 {[%emt 0:00:07]} 36. Rb8 {[%emt 0:00:02]} Ne8 {[%emt 0:00:25]} 37. Bb4 {[%emt 0:00:27]} Kg6 {[%emt 0:00:50]} 38. Bxe7 {[%emt 0:00:20]} Rxe7 {[%emt 0:00:02]} 39. Nb4 {[%emt 0:00:02]} Bb7 {[%emt 0:00:14]} 40. e3 {[%emt 0:00:47]} a5 {[%emt 0:00:03]} 41. Nc2 {[%emt 0:00:01]} Kf7 {[%emt 0:00:15]} 42. Nd4 {[%emt 0:00:05]} Rc7 {[%emt 0:00:51]} 43. Bf1 {[%emt 0:00:45]} Ng7 {[%emt 0:00:32]} 1-0

[Event "Dvorkovich Memorial Rapid 2018"]
[Site "Taganrog"]
[Date "2018.01.13"]
[Round "4.21"]
[White "Ivlev, Aleksey"]
[Black "Garkushin, Artem"]
[Result "1-0"]
[ECO "E64"]
[WhiteElo "2300"]
[BlackElo "2088"]
[Annotator "NA"]
[PlyCount "27"]
[EventDate "2018.??.??"]
[EventType "swiss"]
[EventCountry "RUS"]
[SourceTitle "playchess.com"]
[Source "ChessBase"]
[SourceQuality "1"]
[TimeControl "900+10"]

1. d4 {[%emt 0:00:00]} Nf6 {[%emt 0:00:01]} 2. c4 {[%emt 0:00:00]} c5 {[%emt 0:00:00]} 3. d5 {[%emt 0:00:00]} g6 {[%emt 0:00:00]} 4. Nc3 {[%emt 0:00:00]} Bg7 {[%emt 0:00:03]} 5. g3 {[%emt 0:00:03]} O-O {[%emt 0:00:00]} 6. Bg2 {[%emt 0:00:29]} d6 {[%emt 0:00:00]} 7. Nf3 {[%emt 0:00:00]} a6 {[%emt 0:00:00]} 8. O-O {[%emt 0:00:12]} e6 {[%emt 0:00:08]} 9. e4 {[%emt 0:00:21]} exd5 {[%emt 0:00:01]} 10. exd5 {[%emt 0:00:00]} Bg4 {[%emt 0:00:00]} 11. h3 {[%emt 0:00:01]} Bxf3 {[%emt 0:00:00]} 12. Qxf3 {[%emt 0:00:00]} Nbd7 {[%emt 0:00:00]} 13. Bf4 {[%emt 0:00:00]} Rb8 {[%emt 0:02:24]} 14. Be5 {[%emt 0:00:35]} 1-0

[Event "Dvorkovich Memorial Rapid 2018"]
[Site "Taganrog"]
[Date "2018.01.13"]
[Round "4.23"]
[White "Pshmahov, Osman"]
[Black "Musalov, Ruslan"]
[Result "1/2-1/2"]
[ECO "B07"]
[WhiteElo "2103"]
[BlackElo "2338"]
[Annotator "NA"]
[PlyCount "21"]
[EventDate "2018.??.??"]
[EventType "swiss"]
[EventCountry "RUS"]
[SourceTitle "playchess.com"]
[Source "ChessBase"]
[SourceQuality "1"]
[TimeControl "900+10"]

1. d4 {[%emt 0:00:00]} d6 {[%emt 0:00:00]} 2. e4 {[%emt 0:00:00]} e5 {[%emt 0:00:00]} 3. dxe5 {[%emt 0:00:00]} dxe5 {[%emt 0:00:00]} 4. Qxd8+ {[%emt 0:00:00]} Kxd8 {[%emt 0:00:01]} 5. Nc3 {[%emt 0:00:09]} Be6 {[%emt 0:00:14]} 6. Bg5+ {[%emt 0:00:00]} f6 {[%emt 0:00:39]} 7. O-O-O+ {[%emt 0:00:09]} Nd7 {[%emt 0:00:18]} 8. Be3 {[%emt 0:00:09]} Ne7 {[%emt 0:00:18]} 9. g3 {[%emt 0:00:10]} c6 {[%emt 0:00:04]} 10. Bh3 {[%emt 0:00:19]} Bxh3 {[%emt 0:00:13]} 11. Nxh3 {[%emt 0:00:03]} 1/2-1/2

[Event "Dvorkovich Memorial Rapid 2018"]
[Site "Taganrog"]
[Date "2018.01.13"]
[Round "4.26"]
[White "Kotenko, Pavel"]
[Black "Bogdanov, Rodion"]
[Result "1-0"]
[ECO "C41"]
[WhiteElo "2403"]
[BlackElo "1879"]
[Annotator "NA"]
[PlyCount "109"]
[EventDate "2018.??.??"]
[EventType "swiss"]
[EventCountry "RUS"]
[SourceTitle "playchess.com"]
[Source "ChessBase"]
[SourceQuality "1"]
[TimeControl "900+10"]

1. e4 {[%emt 0:15:00]} e5 {[%emt 0:15:10]} 2. Nf3 {[%emt 0:00:10]} d6 {[%emt 0:00:10]} 3. d4 {[%emt 0:00:10]} Nd7 {[%emt 0:00:10]} 4. Bc4 {[%emt 0:00:10]} exd4 {[%emt 0:00:10]} 5. Qxd4 {[%emt 0:00:10]} Qf6 {[%emt 0:00:10]} 6. Nc3 {[%emt 0:00:10]} Ne5 {[%emt 0:00:10]} 7. Nxe5 {[%emt 0:00:10]} dxe5 {[%emt 0:00:10]} 8. Qd3 {[%emt 0:00:00]} c6 {[%emt 0:00:00]} 9. Be3 {[%emt 0:00:00]} Qd6 {[%emt 0:00:20]} 10. O-O-O {[%emt 0:00:30]} Qxd3 {[%emt 0:00:00]} 11. Rxd3 {[%emt 0:00:10]} Nf6 {[%emt 0:00:20]} 12. Rhd1 {[%emt 0:00:10]} Be7 {[%emt 0:00:10]} 13. f3 {[%emt 0:00:10]} O-O {[%emt 0:00:10]} 14. a4 {[%emt 0:00:10]} b6 {[%emt 0:00:10]} 15. Ne2 {[%emt 0:00:10]} Be6 {[%emt 0:00:10]} 16. Bxe6 {[%emt 0:00:10]} fxe6 {[%emt 0:00:10]} 17. Bd2 {[%emt 0:00:10]} c5 {[%emt 0:00:10]} 18. c4 {[%emt 0:00:10]} Bd8 {[%emt 0:00:10]} 19. Bc3 {[%emt 0:00:10]} Bc7 {[%emt 0:00:10]} 20. Kc2 {[%emt 0:00:10]} Rfe8 {[%emt 0:00:10]} 21. R3d2 {[%emt 0:00:10]} Kf7 {[%emt 0:00:10]} 22. Nc1 {[%emt 0:00:10]} Ke7 {[%emt 0:00:10]} 23. Nd3 {[%emt 0:00:10]} Nd7 {[%emt 0:00:10]} 24. b4 {[%emt 0:00:10]} g5 {[%emt 0:00:10]} 25. Nxc5 {[%emt 0:00:10]} Nxc5 {[%emt 0:00:10]} 26. bxc5 {[%emt 0:00:10]} Red8 {[%emt 0:00:10]} 27. cxb6 {[%emt 0:00:10]} axb6 {[%emt 0:00:10]} 28. Kb3 {[%emt 0:00:10]} Rxd2 {[%emt 0:00:10]} 29. Rxd2 {[%emt 0:00:10]} Bd6 {[%emt 0:00:10]} 30. Bb4 {[%emt 0:00:10]} Bc5 {[%emt 0:00:10]} 31. Bc3 {[%emt 0:00:10]} Bd6 {[%emt 0:00:10]} 32. Ra2 {[%emt 0:00:10]} Kf6 {[%emt 0:00:10]} 33. a5 {[%emt 0:00:10]} bxa5 {[%emt 0:00:10]} 34. Rxa5 {[%emt 0:00:10]} Rb8+ {[%emt 0:00:10]} 35. Rb5 {[%emt 0:00:10]} Rc8 {[%emt 0:00:10]} 36. Bb4 {[%emt 0:00:10]} Bb8 {[%emt 0:00:10]} 37. Rb7 {[%emt 0:00:10]} h5 {[%emt 0:00:10]} 38. c5 {[%emt 0:00:10]} g4 {[%emt 0:00:10]} 39. Kc4 {[%emt 0:00:10]} gxf3 {[%emt 0:00:10]} 40. gxf3 {[%emt 0:00:10]} Bd6 {[%emt 0:00:10]} 41. Kb5 {[%emt 0:00:10]} Bf8 {[%emt 0:00:10]} 42. Rb6 {[%emt 0:00:10]} Rd8 {[%emt 0:00:10]} 43. c6 {[%emt 0:00:10]} Bxb4 {[%emt 0:00:10]} 44. Kxb4 {[%emt 0:00:10]} Rd2 {[%emt 0:00:10]} 45. Kc5 {[%emt 0:00:10]} Rc2+ {[%emt 0:00:10]} 46. Kd6 {[%emt 0:00:00]} Rd2+ {[%emt 0:00:00]} 47. Kc7 {[%emt 0:00:00]} Rxh2 {[%emt 0:00:00]} 48. Kb7 {[%emt 0:00:00]} Rc2 {[%emt 0:00:00]} 49. c7 {[%emt 0:00:00]} h4 {[%emt 0:00:00]} 50. c8=Q {[%emt 0:00:00]} Rxc8 {[%emt 0:00:00]} 51. Kxc8 {[%emt 0:00:00]} h3 {[%emt 0:00:00]} 52. Kd7 {[%emt 0:00:00]} h2 {[%emt 0:00:00]} 53. Rb1 {[%emt 0:00:00]} Kg5 {[%emt 0:00:00]} 54. Kxe6 {[%emt 0:00:00]} Kf4 {[%emt 0:00:00]} 55. Kd5 {[%emt 0:00:00]} 1-0

[Event "Dvorkovich Memorial Rapid 2018"]
[Site "Taganrog"]
[Date "2018.01.13"]
[Round "4.27"]
[White "Zubkov, Sergei"]
[Black "Chernyavsky, Alexander"]
[Result "0-1"]
[ECO "C02"]
[WhiteElo "2107"]
[BlackElo "2326"]
[Annotator "NA"]
[PlyCount "83"]
[EventDate "2018.??.??"]
[EventType "swiss"]
[EventCountry "RUS"]
[SourceTitle "playchess.com"]
[Source "ChessBase"]
[SourceQuality "1"]
[TimeControl "900+10"]

1. e4 {[%emt 0:00:00]} e6 {[%emt 0:00:12]} 2. d4 {[%emt 0:00:02]} d5 {[%emt 0:00:02]} 3. e5 {[%emt 0:00:00]} c5 {[%emt 0:00:03]} 4. c3 {[%emt 0:00:01]} Bd7 {[%emt 0:00:01]} 5. Nf3 {[%emt 0:00:03]} Qb6 {[%emt 0:00:09]} 6. Be2 {[%emt 0:00:02]} Bb5 {[%emt 0:00:00]} 7. O-O {[%emt 0:01:02]} Bxe2 {[%emt 0:00:40]} 8. Qxe2 {[%emt 0:00:03]} Nc6 {[%emt 0:00:05]} 9. Be3 {[%emt 0:00:19]} Nh6 {[%emt 0:00:28]} 10. dxc5 {[%emt 0:02:19]} Bxc5 {[%emt 0:00:03]} 11. Bxh6 {[%emt 0:00:02]} gxh6 {[%emt 0:00:02]} 12. b4 {[%emt 0:00:02]} Bf8 {[%emt 0:00:08]} 13. a4 {[%emt 0:00:23]} Bg7 {[%emt 0:00:57]} 14. Na3 {[%emt 0:00:30]} O-O {[%emt 0:02:05]} 15. a5 {[%emt 0:01:04]} Qc7 {[%emt 0:01:39]} 16. Nb5 {[%emt 0:00:51]} Qd7 {[%emt 0:00:05]} 17. Rad1 {[%emt 0:02:14]} a6 {[%emt 0:01:46]} 18. Nbd4 {[%emt 0:00:05]} Rac8 {[%emt 0:00:26]} 19. Rd3 {[%emt 0:01:01]} Ne7 {[%emt 0:03:15]} 20. h4 {[%emt 0:02:16]} Ng6 {[%emt 0:01:18]} 21. Qd2 {[%emt 0:01:49]} Nxe5 {[%emt 0:01:17]} 22. Nxe5 {[%emt 0:00:02]} Bxe5 {[%emt 0:00:02]} 23. Qxh6 {[%emt 0:00:01]} Kh8 {[%emt 0:00:08]} 24. Nf3 {[%emt 0:01:00]} Bg7 {[%emt 0:00:20]} 25. Qd2 {[%emt 0:02:04]} Rc4 {[%emt 0:00:30]} 26. Nd4 {[%emt 0:01:13]} e5 {[%emt 0:00:48]} 27. Nf3 {[%emt 0:00:03]} d4 {[%emt 0:01:16]} 28. Ng5 {[%emt 0:00:09]} h6 {[%emt 0:00:46]} 29. Ne4 {[%emt 0:00:01]} Qc6 {[%emt 0:00:05]} 30. Nc5 {[%emt 0:00:04]} f5 {[%emt 0:01:24]} 31. cxd4 {[%emt 0:00:22]} e4 {[%emt 0:00:01]} 32. Rb3 {[%emt 0:00:08]} Rxd4 {[%emt 0:00:03]} 33. Qe2 {[%emt 0:00:02]} f4 {[%emt 0:00:18]} 34. Qg4 {[%emt 0:00:01]} f3 {[%emt 0:00:18]} 35. Ne6 {[%emt 0:00:05]} Qd7 {[%emt 0:00:02]} 36. Qxg7+ {[%emt 0:00:03]} Qxg7 {[%emt 0:00:02]} 37. Nxg7 {[%emt 0:00:01]} Kxg7 {[%emt 0:00:09]} 38. b5 {[%emt 0:00:55]} Rf6 {[%emt 0:00:27]} 39. h5 {[%emt 0:00:07]} Rd5 {[%emt 0:00:10]} 40. bxa6 {[%emt 0:00:07]} bxa6 {[%emt 0:00:04]} 41. Rb7+ {[%emt 0:00:04]} Rf7 {[%emt 0:00:06]} 42. Rb3 {[%emt 0:00:38]} 0-1